Cogmind - Beta 15 @@@ ROGUE MODE // 2025.10.09 @ 08:18:54 Player: Kotyk77 Result: Destroyed by D-53 Grenadier with Mini Grenade Launcher Performance ------------- Evolutions (0) 0 Regions Visited (4) 800 Robots Destroyed (21) 105 Value Destroyed (253) 253 Prototype IDs (27) 540 Alien Tech Used (0) 0 Bonus (300) 300 TOTAL SCORE: 1998 Bonus ------- Aligned with FarCom 300 Cogmind --------- Core Integrity 0/250 Matter 283/300 Energy 100/100 System Corruption 0% Temperature Cool (0) Movement Rolling (130) Ox2 Location -9/Mines Parts ------- > --- POWER (1) -------- (None) > --- PROPULSION (2) --- Compact Wheel > --- UTILITY (2) ------ High-capacity Storage Unit Light Armor Plating > --- WEAPON (2) ------- (None) > --- INVENTORY (20) --- Ion Engine Wheel Wheel Wheel Lightpack 2.0 Sensor Array Improved Terrain Scanner Seismic Detector ECM Suite Shield Generator Medium Laser Light Assault Rifle Grenade Launcher Grenade Launcher Grenade Launcher Mining Laser Ripper Peak State ------------ > --- POWER ------------ Improved Ion Engine > --- PROPULSION ------- Wheel Wheel > --- UTILITY ---------- High-capacity Storage Unit Seismic Detector > --- WEAPON ----------- Assault Rifle Grenade Launcher > --- INVENTORY -------- Ion Engine Wheel Wheel Wheel Compact Wheel Heat Sink Lightpack 2.0 Sensor Array Improved Terrain Scanner ECM Suite Light Armor Plating Medium Laser Assault Rifle Light Assault Rifle Grenade Launcher Grenade Launcher Mining Laser Ripper [Rating: 13] Favorites ----------- Power Light Ion Engine Engine Light Ion Engine Propulsion Wheel Wheel Wheel Utility Seismic Detector Device Seismic Detector Storage High-capacity Storage Unit Protection Light Armor Plating Weapon Assault Rifle Energy Gun Medium Laser Ballistic Gun Assault Rifle Launcher Grenade Launcher Build | -11 -10 -10 -10 -9 ------- Run | Yrd Mat Min Exi Min Slots Evolved . | . . . . . Power . | . . . . . Propulsion . | . . . . . Utility . | . . . . . Weapon . | . . . . . Parts Attached 21 | 7 7 3 . 4 Power 3 | 1 . 1 . 1 Engine 3 | 1 . 1 . 1 Core . | . . . . . Reactor . | . . . . . Propulsion 5 | 2 1 1 . 1 Treads . | . . . . . Leg . | . . . . . Wheel 5 | 2 1 1 . 1 Hover . | . . . . . Flight . | . . . . . Utility 5 | 2 2 . . 1 Device 1 | 1 . . . . Storage 3 | 1 2 . . . Processor . | . . . . . Hackware . | . . . . . Protection 1 | . . . . 1 Artifact . | . . . . . Weapon 8 | 2 4 1 . 1 Energy Gun 1 | 1 . . . . Energy Cannon . | . . . . . Ballistic Gun 4 | 1 2 1 . . Ballistic Cannon . | . . . . . Launcher 3 | . 2 . . 1 Special Weapon . | . . . . . Impact Weapon . | . . . . . Slashing Weapon . | . . . . . Piercing Weapon . | . . . . . Special Melee Weapon . | . . . . . Unidentified Prototypes . | . . . . . Parts Lost 5 | . . . . 5 Power 1 | . . . . 1 Propulsion 2 | . . . . 2 Utility . | . . . . . Weapon 2 | . . . . 2 Highest Loss Streak 5 | . . . . 5 To Critical Strikes . | . . . . . Average Backups 16 | 3 13 20 19 17 Power . | . 1 1 1 1 Propulsion 4 | 1 5 6 5 3 Utility 4 | . 3 6 6 5 Weapon 5 | . 4 7 7 7 Tool/Special . | . . . . . Unused Backups 19 | . . 1 3 15 Power 1 | . . . . 1 Propulsion 6 | . . . 2 4 Utility 7 | . . . 1 6 Weapon 5 | . . 1 . 4 Tool/Special . | . . . . . Average Slot Usage (%) 100 | . 100 100 100 100 Engine 14 | . 14 14 14 14 Wheel 28 | . 28 28 28 28 Device 14 | . 14 14 14 14 Storage 14 | . 14 14 14 14 Energy Gun 3 | . 7 . . . Ballistic Gun 20 | . 13 24 28 21 Launcher 4 | . 6 3 . 6 Peak Build Rating 13 | 7 9 9 12 13 Average Rating 9 | 5 8 9 10 12 On Entrance 7 | . 7 9 9 12 Naked Turns . | . . . . . Heaviest Build 53 | 12 49 49 48 53 Greatest Support 26 | 26 26 26 20 20 Greatest Overweight (x) 4 | 1 1 2 2 4 Average Overweight (x) 1 | . . 1 2 2 Largest Inventory Capacity 20 | 8 20 20 20 20 Average Capacity 17 | 7 15 20 20 20 Most Carried 20 | 7 20 20 20 20 Average Carried 16 | 3 13 20 19 19 Final Capacity 20 | 8 20 20 20 20 Final Carried 20 | 7 20 20 20 19 Class Distribution -------------------- 100% | Mutant Dominant Class ---------------- Mutant | -10/Materials Mutant | -10/Mines Mutant | -10/Exiles Mutant | -9/Mines Resources | -11 -10 -10 -10 -9 ----------- Run | Yrd Mat Min Exi Min Matter Collected 522 | 253 165 78 . 26 Remotely . | . . . . . Salvage Created 477 | 53 340 84 . . Parts 44 | 5 28 11 . . Haulers Intercepted 1 | . 1 . . . Recyclers Shooed 1 | . . 1 . . Parts Field Recycled . | . . . . . Retrieved Matter . | . . . . . Parts Self-Destructed . | . . . . . Prevented . | . . . . . Kills | -11 -10 -10 -10 -9 ------- Run | Yrd Mat Min Exi Min Combat Hostiles Destroyed 11 | . 8 3 . . Guns 8 | . 5 3 . . AOE 3 | . 3 . . . Classes Destroyed 8 | 1 6 1 . . Worker 1 | . . 1 . . Tunneler 4 | 2 1 1 . . Hauler 1 | . 1 . . . Recycler 1 | . 1 . . . Operator 1 | . 1 . . . Watcher 2 | . 2 . . . Swarmer 9 | . 6 3 . . Grunt 2 | . 2 . . . Best Kill Streak 5 | 2 5 3 . . Combat Bots Only 3 | . 3 3 . . Max Kills in Single Turn 2 | 1 2 1 . . Gunslinging . | . . . . . Exploded 2 | . 2 . . . Melee . | . . . . . Uniques/NPCs Destroyed . | . . . . . Combat | -11 -10 -10 -10 -9 -------- Run | Yrd Mat Min Exi Min Hostile Shots Fired 65 | . 37 6 . 22 Missed 17 | . 11 2 . 4 Hits 48 | . 26 4 . 18 Projectile 48 | . 26 4 . 18 AOE 15 | . . . . 15 Damage Taken 872 | . 235 30 . 607 Core 262 | . 54 . . 208 Absorbed by Shields . | . . . . . Core Remaining (%) 100 | 100 . . . . Volleys Fired 41 | 5 25 9 . 2 Largest 2 | 2 2 2 . 2 Hottest 80 | 70 80 40 . 40 Shots Fired 81 | 10 49 18 . 4 Gun 77 | 10 45 18 . 4 Cannon . | . . . . . Launcher 4 | . 4 . . . Special . | . . . . . Kinetic 50 | 5 23 18 . 4 Thermal 27 | 5 22 . . . Explosive 4 | . 4 . . . Electromagnetic . | . . . . . Robot Hit Streak 7 | 4 7 6 . 3 Robot Miss Streak 3 | 1 2 3 . 1 Penetration Max . | . . . . . Secondary Targets 1 | . 1 . . . Max Gunslinging Chain 1 | . 1 . . . Shots Hit Robots 48 | 6 27 12 . 3 Core Hits 28 | 2 19 6 . 1 Critical Kills . | . . . . . Critical Parts Destroyed . | . . . . . Critical Strikes 4 | 1 3 . . . Burn 4 | 1 3 . . . Melee Attacks . | . . . . . Impact . | . . . . . Slashing . | . . . . . Piercing . | . . . . . Sneak Attacks . | . . . . . Combat Hostiles . | . . . . . Follow-up Attacks . | . . . . . Damage Inflicted 725 | 64 479 141 . 41 Guns 544 | 64 298 141 . 41 Cannons . | . . . . . Explosions 181 | . 181 . . . Melee . | . . . . . Ramming . | . . . . . Kinetic 305 | 13 110 141 . 41 Thermal 239 | 51 188 . . . Explosive 181 | . 181 . . . Electromagnetic . | . . . . . Impact . | . . . . . Slashing . | . . . . . Piercing . | . . . . . Highest Corruption . | . . . . . Average Corruption . | . . . . . Corruption Purged . | . . . . . Corruption Blocked . | . . . . . Overload Shots . | . . . . . Overflow Damage . | . . . . . Projectiles . | . . . . . Explosions . | . . . . . Melee . | . . . . . Knockbacks . | . . . . . Impact . | . . . . . Kinetic . | . . . . . Secondary . | . . . . . Self-Inflicted Damage . | . . . . . Shots . | . . . . . Rammed . | . . . . . Targets Rammed . | . . . . . Kicked . | . . . . . Crushed . | . . . . . Highest Temperature 110 | 80 110 . . . Average Temperature 37 | 34 38 . . . Received Heat Transfer 24 | . 24 . . . Siege Activations . | . . . . . Martial Activations . | . . . . . Shielding Activations . | . . . . . Robots Disrupted . | . . . . . Combat Hostiles . | . . . . . Robots Corrupted . | . . . . . Combat Hostiles . | . . . . . Parts Fried . | . . . . . Impact Corruptions . | . . . . . Robots Melted 1 | . 1 . . . Combat Hostiles . | . . . . . Parts Melted 2 | . 2 . . . Heat Transferred 999 | 222 777 . . . Parts Sabotaged . | . . . . . Parts Stolen . | . . . . . Parts Stripped . | . . . . . Power Chain Reactions . | . . . . . Alert | -11 -10 -10 -10 -9 ------- Run | Yrd Mat Min Exi Min Maximum Alert Level . | . . . . . Low Security (%) 100 | 100 100 100 . 100 Level 1 . | . . . . . Level 2 . | . . . . . Level 3 . | . . . . . Level 4 . | . . . . . Level 5 . | . . . . . High Security . | . . . . . Max Security . | . . . . . Peak Influence 172 | 10 172 70 . . Initial 39 | . . 39 . . Average 38 | . 72 23 . . Influence Increases 411 | 10 312 89 . . Destroy 0b10 Robot/C 220 | . 160 60 . . Destroy 0b10 Robot/NC 50 | 10 30 10 . . Destroy Leader 46 | . 36 10 . . Successful Hack 37 | . 28 9 . . Disable Machine 15 | . 15 . . . Destroy Structure 28 | . 28 . . . Partial Spotted 15 | . 15 . . . Influence Decreases 411 | 10 210 191 . . Entered New Map 63 | . . 63 . . Time Decay 348 | 10 210 128 . . Squads Dispatched 3 | . 3 . . . Investigation 2 | . 2 . . . Extermination . | . . . . . Reinforcement 1 | . 1 . . . Assault . | . . . . . Garrison . | . . . . . Intercept . | . . . . . Searches Triggered . | . . . . . Construction Impeded . | . . . . . Haulers Reinforced . | . . . . . Active Scanning Responses . | . . . . . Cargo Convoy Interrupts . | . . . . . Stealth | -11 -10 -10 -10 -9 --------- Run | Yrd Mat Min Exi Min Distress Signals 2 | . 2 . . . Communications Jammed . | . . . . . Distress Signals . | . . . . . Times Spotted 28 | . 11 3 . 14 Peak Tracking Total 13 | . 4 3 . 13 Tactical Retreats . | . . . . . Traps | -11 -10 -10 -10 -9 ------- Run | Yrd Mat Min Exi Min Traps Triggered . | . . . . . Indirectly . | . . . . . Trap Hack Attempts . | . . . . . Triggered . | . . . . . Disarmed . | . . . . . Reprogrammed . | . . . . . Reused . | . . . . . Traps Extracted . | . . . . . Installed . | . . . . . Triggered . | . . . . . Machines | -11 -10 -10 -10 -9 ---------- Run | Yrd Mat Min Exi Min Machines Disabled 1 | . 1 . . . Max in Single Turn 1 | . 1 . . . Machines Repaired . | . . . . . Machines Dismantled . | . . . . . Machines Sabotaged . | . . . . . Overloaded Fab Kills . | . . . . . Hacking | -11 -10 -10 -10 -9 --------- Run | Yrd Mat Min Exi Min Machines Accessed 7 | . 4 1 2 . Terminals 5 | . 4 1 . . Fabricators . | . . . . . Repair Stations . | . . . . . Recycling Units . | . . . . . Scanalyzers . | . . . . . Garrison Access . | . . . . . Total Hacks 29 | . 18 3 8 . Successful 18 | . 8 2 8 . Failed 10 | . 9 1 . . Catastrophic 2 | . 2 . . . Database Lockouts 1 | . 1 . . . Manual 14 | . 13 . 1 . Terminals 21 | . 18 3 . . Fabricators . | . . . . . Repair Stations . | . . . . . Recycling Units . | . . . . . Scanalyzers . | . . . . . Garrison Access . | . . . . . Terminal Hacks 15 | . 5 2 8 . Record 7 | . . . 7 . Robot Analysis 1 | . 1 . . . Prototype ID Bank 2 | . 2 . . . Branch Access Points 1 | . 1 . . . Terminal Index 1 | . 1 . . . Dispatch Records 1 | . . 1 . . Zone Layout 1 | . . 1 . . Proto ID Catalog 1 | . . . 1 . Fabricator Hacks . | . . . . . Repair Station Hacks . | . . . . . Recycling Unit Hacks . | . . . . . Scanalyzer . | . . . . . Garrison Access Hacks . | . . . . . Unauthorized Hacks 3 | . 3 . . . Terminals 3 | . 3 . . . Botnet 3 | . 3 . . . Fabricators . | . . . . . Repair Stations . | . . . . . Recycling Units . | . . . . . Scanalyzers . | . . . . . Garrison Access . | . . . . . Data Cores Recovered . | . . . . . Used . | . . . . . Hacking Detections 4 | . 3 1 . . Full Trace Events 2 | . 2 . . . Feedback Events . | . . . . . Feedback Blocked . | . . . . . Robot Schematics Acquired . | . . . . . Robots Built . | . . . . . Authchips . | . . . . . Time . | . . . . . Total Robot Build Rating . | . . . . . Part Schematics Acquired . | . . . . . Parts Built . | . . . . . Authchips . | . . . . . Time . | . . . . . Total Part Build Rating . | . . . . . Parts Repaired . | . . . . . Time . | . . . . . Parts Recycled . | . . . . . Recycled Matter . | . . . . . Retrieved Matter . | . . . . . Retrieved Components . | . . . . . Parts Scanalyzed . | . . . . . Part Schematics Acquired . | . . . . . Parts Damaged . | . . . . . Bothacking | -11 -10 -10 -10 -9 ------------ Run | Yrd Mat Min Exi Min Used RIF Installer . | . . . . . Robots Hacked . | . . . . . Non-combat . | . . . . . Combat . | . . . . . Robot Hacks Applied . | . . . . . Relay Couplers Released . | . . . . . Fabnet Peak Effective % . | . . . . . Robots Rewired . | . . . . . Allies Hacked . | . . . . . Hacks Repelled . | . . . . . Allies | -11 -10 -10 -10 -9 -------- Run | Yrd Mat Min Exi Min Total Allies . | . . . . . Largest Group . | . . . . . Highest-Rated Group . | . . . . . Highest-Rated Ally . | . . . . . Total Orders . | . . . . . Ally Attacks . | . . . . . Total Damage . | . . . . . Kills . | . . . . . Allies Corrupted . | . . . . . Allies Melted . | . . . . . Intel | -11 -10 -10 -10 -9 ------- Run | Yrd Mat Min Exi Min Active Infowar (turns) 1456 | 22 561 364 255 254 Seismic 1456 | 22 561 364 255 254 Robot Analysis Total 1 | . 1 . . . Derelict Logs Recovered 1 | . . 1 . . Drone Launches . | . . . . . Drone Recoveries . | . . . . . Exploration | -11 -10 -10 -10 -9 ------------- Run | Yrd Mat Min Exi Min Turns Passed 1518 | 83 561 364 255 255 Spaces Moved 1246 | 58 440 302 230 216 Core 7 | 7 . . . . Treads . | . . . . . Legs . | . . . . . Wheels 1239 | 51 440 302 230 216 Hover . | . . . . . Flight . | . . . . . Fastest Speed 50 | 50 90 105 110 110 Average Speed 105 | 89 101 105 110 110 Slowest Speed 140 | 100 105 110 110 140 Overloaded Moves . | . . . . . Propulsion Burnouts . | . . . . . Robots Hopped . | . . . . . Potential Cave-ins . | . . . . . Cave-ins Triggered . | . . . . . Exploration Rate (%) 42 | 3 65 35 61 49 Regions Visited 4 Branch Regions 3 Pre-discovered Areas 1 | . . . 1 . Known Exits Taken 2 | . 1 . 1 . Unknown Exits Taken 2 | 1 . 1 . . Scrap Searched 1 | . . . . 1 Spaces Dug . | . . . . . Terrain Destroyed 27 | . 27 . . . Melee . | . . . . . Projectile . | . . . . . AOE 27 | . 27 . . . Terrain Rammed . | . . . . . Walls Destroyed . | . . . . . Machines Disabled . | . . . . . Actions | -11 -10 -10 -10 -9 --------- Run | Yrd Mat Min Exi Min Total 1378 | 76 509 329 233 231 Wait 31 | . 18 12 . 1 Move 1242 | 57 439 301 229 216 Hop . | . . . . . Pick Up 26 | 7 14 1 1 3 Fast Attach 8 | 7 1 . . . Attach 1 | . . . . 1 Detach . | . . . . . Swap 14 | . 7 3 . 4 Drop 15 | . 5 3 3 4 Fire 41 | 5 25 9 . 2 Melee . | . . . . . Ram . | . . . . . Kick . | . . . . . Crush . | . . . . . Escape Stasis . | . . . . . Rewire . | . . . . . Trap . | . . . . . Miscellaneous . | . . . . . Route ------- -11/Scrapyard -10/Materials (discovered 3 exits: [*Mat x2] / *Min) -10/Mines (discovered 3 exits: [*Mat x2] / *Exi) -10/Exiles (discovered 2 exits: *Min x2) -9/Mines History --------- Turn | Location | Event 25 | -11/Scrapyard | Discovered new exit (range 16) 84 | -11/Scrapyard | Entered Materials 198 | -10/Materials | Discovered new exit (range 5) 311 | -10/Materials | Build established: Mutant 348 | -10/Materials | Discovered new exit (range 10) 500 | -10/Materials | Central database locked down 568 | -10/Materials | Identified exit to Mines 645 | -10/Materials | Entered Mines 661 | -10/Mines | Met a Derelict bent on vengeance 695 | -10/Mines | A weapon hastily lodged in a ceiling crevice suddenly fell to the ground 695 | -10/Mines | Discovered new exit (range 8) 989 | -10/Mines | Discovered new exit (range 6) 1003 | -10/Mines | Deemed a non-threat by the Exiles lab entrance 1004 | -10/Mines | Discovered new exit (range 5) 1009 | -10/Mines | Entered Exiles 1010 | -10/Exiles | Identified exit to Mines 1036 | -10/Exiles | Met 8R-AWN 1056 | -10/Exiles | Met EX-HEX 1088 | -10/Exiles | Met EX-BIN 1101 | -10/Exiles | Aligned with FarCom system 1102 | -10/Exiles | Given EX-Vault access code 1132 | -10/Exiles | Opened EX-Vault 1142 | -10/Exiles | Found Lightpack 2.0 1164 | -10/Exiles | Warned to stay clear of 0b10 Research branches 1198 | -10/Exiles | Met EX-DEC 1208 | -10/Exiles | Learned location of Zion (-7) 1264 | -10/Exiles | Left Exiles lab with Lightpack 2.0 1264 | -10/Exiles | Entered Mines 1268 | -9/Mines | YI-UF0 nonchalantly dropped a Grenade Launcher on the ground 1398 | -9/Mines | Found DCF Scrap (12 items) 1486 | -9/Mines | Assembled infested the area 1491 | -9/Mines | Assisted by a Guerilla fighting off Assembled 1505 | -9/Mines | Core integrity fell below 50% 1519 | -9/Mines | Core integrity fell below 20% 1519 | -9/Mines | Destroyed by D-53 Grenadier with Mini Grenade Launcher Last Messages --------------- 01422_ R-06 Scavenger collects Lgt. Ion Engine. 01486_ ALERT: Infestation in the mines, dispatching Demolisher response squad. 01486_ R-06 Scavenger destroyed. 01491_ A derelict emerges from the shadows: "You need to get out of here! I've been tracking a group of Assembled to figure out where they're coming from, and they're closing on this area, come on!" 01491_ K-01 Serf collects debris. 01498_ HV Slug penetrates D-53 Grenadier. 01498_ D-53 Grenadier knocked back. 01500_ HV Slug penetrates Wall. 01500_ K-01 Serf destroyed. 01502_ S0-W11(h) destroyed. 01512_ Assault Rifle destroyed. 01513_ Wheel destroyed. 01515_ The unstable cave ceiling collapses. 01516_ Assault Rifle destroyed. 01516_ Wheel destroyed. 01518_ The unstable cave ceiling collapses. 01518_ Imp. Ion Engine destroyed. Map ----- +----------------------------------------------------+ | ????????????????????????????? ?# ###### ## | | ????????????????????????????? ?# | | ????????????????????????????? ?# | | ????????????????????????????# ?###### ## | | ??????????????????????????## ??????# #### | | ??????????????????????????# ??????## #??# | | ??????????????????????????? ???????# #??# | | ??????????????????????????? ???????## ##??# | | ??????????????????????????? #????????# #####???# | | ???????????????????????????# #????????# #???????# | | ???????????????????????????# #????????# #???????? | | ????????????????####???????# #????????# #???????? | | ?????????##?##### ######### ########## #???????? | | ??????#??# ## # =*%|!** #???????? | | ??????# ##"" [= #???????? | | ??????#"%" ########### ##########???????? | | ??????# #??#####???# #????????????????? | | ??????##### = % #### ##??# #####????????????? | | ??????????# #### #????????????? | | ???######## =# ##### #????????????? | | ???# #### ?????????????? | | ???# dd ??????????????? | | ???# ########## #?????????????????? | | ???# #????????# #??????????????????? | | ???# #????????#### #??????????????????? | | ???# #??????????# @ #???????????????????? | | ??## ##?????????# #??????????????????? | | ?## ##????????# #??????????????????? | | ?# #????????## #???????????????? | | ## #?????????# # a a ????????????? | | # #?????????## ## #####???????????? | | #??????????##?## a=%! ##???????????????? | | ##??????????????# * #????????????????? | | ###???????????????# a #???????????????? | | ##?????????????????# #???????????????? | | #??????????????????# a #???????????????? | | #?????????????????? a#???????????????? | | ##?????????????????? a ???????????????? | | ###???????????????????